[Event "Live Chess"]
[Site "Chess.com"]
[Date "2023.05.20"]
[Round "-"]
[White "grillage"]
[Black "risinghelios"]
[Result "1-0"]
[WhiteElo "1859"]
[BlackElo "1906"]
[TimeControl "300"]
[EndTime "15:18:47 PDT"]
[Termination "grillage won by resignation"]

1. d4 {[%clk 0:04:59.3]} 1... e5 {[%clk 0:04:46.1]} 2. dxe5 {[%clk 0:04:57.5]}
2... Nc6 {[%clk 0:04:31.4]} 3. Nf3 {[%clk 0:04:55.6]} 3... Qe7 {[%clk
0:04:24.8]} 4. Nc3 {[%clk 0:04:54.3]} 4... Nxe5 {[%clk 0:04:23.6]} 5. e4 {[%clk
0:04:53.3]} 5... Nxf3+ {[%clk 0:04:22.7]} 6. Qxf3 {[%clk 0:04:52]} 6... d6
{[%clk 0:04:22.3]} 7. Bc4 {[%clk 0:04:47.3]} 7... Nf6 {[%clk 0:04:20.2]} 8. O-O
{[%clk 0:04:45.6]} 8... Be6 {[%clk 0:04:18.3]} 9. Nd5 {[%clk 0:04:41.8]} 9...
Bxd5 {[%clk 0:04:04.7]} 10. exd5 {[%clk 0:04:37.4]} 10... Qd7 {[%clk 0:04:02.1]}
11. Re1+ {[%clk 0:04:34.1]} 11... Be7 {[%clk 0:04:00.4]} 12. Bg5 {[%clk
0:04:33]} 12... O-O {[%clk 0:03:58.3]} 13. Re2 {[%clk 0:04:25.8]} 13... Rfe8
{[%clk 0:03:57.6]} 14. Rae1 {[%clk 0:04:24.8]} 14... h6 {[%clk 0:03:57.1]} 15.
Bh4 {[%clk 0:04:21.8]} 15... b5 {[%clk 0:03:55.2]} 16. Bb3 {[%clk 0:04:19.9]}
16... a5 {[%clk 0:03:53.8]} 17. a3 {[%clk 0:04:16.7]} 17... a4 {[%clk 0:03:39]}
18. Ba2 {[%clk 0:04:14.7]} 18... Kh7 {[%clk 0:03:17.5]} 19. Qd3+ {[%clk
0:03:57.5]} 19... Kh8 {[%clk 0:03:12.6]} 20. Re3 {[%clk 0:03:46.6]} 20... Ng8
{[%clk 0:03:09.9]} 21. Bxe7 {[%clk 0:03:36.5]} 21... Rxe7 {[%clk 0:03:09.8]} 22.
Rxe7 {[%clk 0:03:28.5]} 22... Nxe7 {[%clk 0:03:09.7]} 23. c3 {[%clk 0:03:22.6]}
23... Ng6 {[%clk 0:03:07.4]} 24. Qe4 {[%clk 0:03:18.2]} 24... Nf8 {[%clk
0:02:38.4]} 25. Bb1 {[%clk 0:03:14.1]} 25... Ng6 {[%clk 0:02:36.5]} 26. h4
{[%clk 0:03:05.3]} 26... h5 {[%clk 0:02:25.4]} 27. Qe3 {[%clk 0:02:46.6]} 27...
Qg4 {[%clk 0:02:20.2]} 28. Bxg6 {[%clk 0:02:12.8]} 28... Qxg6 {[%clk 0:02:06]}
29. Qe7 {[%clk 0:02:10.2]} 29... Qd3 {[%clk 0:01:57]} 30. Qxf7 {[%clk
0:01:59.4]} 30... Qh7 {[%clk 0:01:39]} 31. Re7 {[%clk 0:01:51]} 31... Rg8 {[%clk
0:01:37]} 32. Rxc7 {[%clk 0:01:48.6]} 32... Qb1+ {[%clk 0:01:33.5]} 33. Kh2
{[%clk 0:01:47.1]} 33... Qh7 {[%clk 0:01:32]} 34. Rd7 {[%clk 0:01:41.1]} 34...
b4 {[%clk 0:01:03.8]} 35. cxb4 {[%clk 0:01:36.7]} 35... Rc8 {[%clk 0:00:54.8]}
36. Rxd6 {[%clk 0:01:21.7]} 36... Qg8 {[%clk 0:00:45]} 37. Qxh5+ {[%clk
0:01:18.9]} 37... Qh7 {[%clk 0:00:44.5]} 38. Qxh7+ {[%clk 0:01:12.3]} 38... Kxh7
{[%clk 0:00:43.6]} 39. Ra6 {[%clk 0:01:09.6]} 39... Rd8 {[%clk 0:00:42]} 40. d6
{[%clk 0:01:08.5]} 40... Kh6 {[%clk 0:00:38.9]} 41. g4 {[%clk 0:01:06.6]} 41...
g5 {[%clk 0:00:37.7]} 42. h5 {[%clk 0:01:05.2]} 42... Rf8 {[%clk 0:00:36.3]} 43.
Kg3 {[%clk 0:01:04.1]} 43... Rd8 {[%clk 0:00:34.5]} 44. f4 {[%clk 0:01:00.5]}
44... gxf4+ {[%clk 0:00:33.1]} 45. Kxf4 {[%clk 0:00:59.7]} 45... Rf8+ {[%clk
0:00:33]} 46. Ke5 {[%clk 0:00:57.8]} 46... Kg5 {[%clk 0:00:32.8]} 47. d7 {[%clk
0:00:54.8]} 47... Rd8 {[%clk 0:00:31.7]} 48. Rd6 {[%clk 0:00:53.3]} 48... Kxg4
{[%clk 0:00:30.2]} 49. Ke6 {[%clk 0:00:51.8]} 49... Kxh5 {[%clk 0:00:28.7]} 50.
Ke7 {[%clk 0:00:50.6]} 1-0

[Event "Live Chess"]
[Site "Chess.com"]
[Date "2023.05.20"]
[Round "-"]
[White "Hussamalhaidar"]
[Black "Wild_Tiger"]
[Result "1-0"]
[WhiteElo "1036"]
[BlackElo "1066"]
[TimeControl "300"]
[EndTime "15:18:53 PDT"]
[Termination "Hussamalhaidar won by checkmate"]

1. e4 {[%clk 0:04:54.8]} 1... Nc6 {[%clk 0:04:59.5]} 2. Nf3 {[%clk 0:04:54.2]}
2... Nf6 {[%clk 0:04:57.7]} 3. e5 {[%clk 0:04:50.8]} 3... Nd5 {[%clk 0:04:52.8]}
4. Bc4 {[%clk 0:04:47.1]} 4... e6 {[%clk 0:04:51.5]} 5. d4 {[%clk 0:04:43.5]}
5... a6 {[%clk 0:04:45.9]} 6. Bg5 {[%clk 0:04:41]} 6... Be7 {[%clk 0:04:41]} 7.
Bd2 {[%clk 0:04:32.8]} 7... b5 {[%clk 0:04:38.2]} 8. Bxd5 {[%clk 0:04:29.1]}
8... exd5 {[%clk 0:04:33.5]} 9. O-O {[%clk 0:04:26.5]} 9... O-O {[%clk
0:04:29.6]} 10. Nc3 {[%clk 0:04:23.9]} 10... Bh4 {[%clk 0:04:14.4]} 11. Nxh4
{[%clk 0:04:17.1]} 11... Qxh4 {[%clk 0:04:11.9]} 12. f4 {[%clk 0:04:08.7]} 12...
Nxd4 {[%clk 0:04:05.7]} 13. Be1 {[%clk 0:04:00.7]} 13... d6 {[%clk 0:03:50.4]}
14. Bxh4 {[%clk 0:03:56.7]} 14... dxe5 {[%clk 0:03:46.5]} 15. fxe5 {[%clk
0:03:47.4]} 15... Ne6 {[%clk 0:03:42.9]} 16. Qxd5 {[%clk 0:03:42]} 16... c6
{[%clk 0:03:29.9]} 17. Qxc6 {[%clk 0:03:35.4]} 17... Rb8 {[%clk 0:03:27.9]} 18.
Rad1 {[%clk 0:03:28]} 18... Bb7 {[%clk 0:03:26.9]} 19. Qd6 {[%clk 0:03:10.3]}
19... Rbd8 {[%clk 0:03:19.5]} 20. Bxd8 {[%clk 0:03:05.4]} 20... Rxd8 {[%clk
0:03:19]} 21. Qxd8+ {[%clk 0:03:00.1]} 21... Nf8 {[%clk 0:03:13.4]} 22. Qc7
{[%clk 0:02:50]} 22... Ba8 {[%clk 0:03:01.4]} 23. Qxf7+ {[%clk 0:02:43.4]} 23...
Kh8 {[%clk 0:02:56.9]} 24. Qxf8# {[%clk 0:02:40.2]} 1-0

[Event "Live Chess"]
[Site "Chess.com"]
[Date "2023.05.20"]
[Round "-"]
[White "Tushinskiy"]
[Black "Delacorta"]
[Result "1-0"]
[WhiteElo "2151"]
[BlackElo "1422"]
[TimeControl "300"]
[EndTime "15:19:02 PDT"]
[Termination "Tushinskiy won by resignation"]

1. d4 {[%clk 0:04:58.2]} 1... Nf6 {[%clk 0:04:54.7]} 2. c3 {[%clk 0:04:58.1]}
2... e5 {[%clk 0:04:51.5]} 3. Nf3 {[%clk 0:04:58]} 3... exd4 {[%clk 0:04:50.1]}
4. cxd4 {[%clk 0:04:56.9]} 4... Bb4+ {[%clk 0:04:48.4]} 5. Nc3 {[%clk
0:04:56.1]} 5... Nc6 {[%clk 0:04:43.8]} 6. Bg5 {[%clk 0:04:54.2]} 6... O-O
{[%clk 0:04:42]} 7. e3 {[%clk 0:04:53.3]} 7... h6 {[%clk 0:04:39.8]} 8. Bh4
{[%clk 0:04:52.3]} 8... b6 {[%clk 0:04:32.1]} 9. Bd3 {[%clk 0:04:50.9]} 9... Bb7
{[%clk 0:04:29]} 10. a3 {[%clk 0:04:44.8]} 10... Be7 {[%clk 0:04:26.9]} 11. Qe2
{[%clk 0:04:41]} 11... Na5 {[%clk 0:04:21.4]} 12. O-O {[%clk 0:04:38.3]} 12...
Nb3 {[%clk 0:04:14.3]} 13. Rad1 {[%clk 0:04:36.8]} 13... a5 {[%clk 0:04:13.1]}
14. e4 {[%clk 0:04:29.1]} 14... c6 {[%clk 0:03:57.2]} 15. e5 {[%clk 0:04:26.1]}
15... Nd5 {[%clk 0:03:56.4]} 16. Bg3 {[%clk 0:04:19.7]} 16... b5 {[%clk
0:03:49.3]} 17. Nxd5 {[%clk 0:04:17.6]} 17... cxd5 {[%clk 0:03:46.4]} 18. Bxb5
{[%clk 0:04:16]} 18... Qb6 {[%clk 0:03:27.7]} 19. Bd3 {[%clk 0:04:13.6]} 19...
Ba6 {[%clk 0:03:21.5]} 20. h4 {[%clk 0:04:10.9]} 20... Bxd3 {[%clk 0:03:18.8]}
21. Rxd3 {[%clk 0:04:10.8]} 21... a4 {[%clk 0:03:15.8]} 22. Kh2 {[%clk 0:04:08]}
22... Rfc8 {[%clk 0:03:09.8]} 23. Rfd1 {[%clk 0:04:01]} 23... Rc1 {[%clk
0:03:07]} 24. Qe3 {[%clk 0:03:56.3]} 24... Rac8 {[%clk 0:03:03.7]} 25. Rxb3
{[%clk 0:03:47]} 25... axb3 {[%clk 0:02:55]} 26. Rxc1 {[%clk 0:03:45.6]} 1-0

[Event "Live Chess"]
[Site "Chess.com"]
[Date "2023.05.20"]
[Round "-"]
[White "Long1968"]
[Black "LL220284LL"]
[Result "0-1"]
[WhiteElo "1202"]
[BlackElo "2385"]
[TimeControl "300"]
[EndTime "15:19:07 PDT"]
[Termination "LL220284LL won on time"]

1. e4 {[%clk 0:04:57.4]} 1... Nf6 {[%clk 0:04:57.1]} 2. d3 {[%clk 0:04:54.4]}
2... d6 {[%clk 0:04:55.3]} 3. Nd2 {[%clk 0:04:50.1]} 3... g6 {[%clk 0:04:52.9]}
4. Ngf3 {[%clk 0:04:47]} 4... Bg7 {[%clk 0:04:51.9]} 5. g3 {[%clk 0:04:45]} 5...
Nbd7 {[%clk 0:04:50.6]} 6. Bg2 {[%clk 0:04:43.2]} 6... O-O {[%clk 0:04:50.1]} 7.
O-O {[%clk 0:04:41.5]} 7... e5 {[%clk 0:04:47.8]} 8. Re1 {[%clk 0:04:38.6]} 8...
c6 {[%clk 0:04:43.8]} 9. Nf1 {[%clk 0:04:36.4]} 9... Nc5 {[%clk 0:04:40]} 10.
Ne3 {[%clk 0:04:32.6]} 10... Re8 {[%clk 0:04:38.3]} 11. c3 {[%clk 0:04:29.1]}
11... d5 {[%clk 0:04:36]} 12. b4 {[%clk 0:04:11.5]} 12... dxe4 {[%clk
0:04:30.2]} 13. bxc5 {[%clk 0:03:58.1]} 13... exf3 {[%clk 0:04:28.2]} 14. Bxf3
{[%clk 0:03:52.5]} 14... Qa5 {[%clk 0:04:18.7]} 15. Qb3 {[%clk 0:03:30.9]} 15...
Qxc5 {[%clk 0:04:14.3]} 16. Ba3 {[%clk 0:03:26.9]} 16... Qb6 {[%clk 0:04:13.2]}
17. Qxb6 {[%clk 0:03:15.5]} 17... axb6 {[%clk 0:04:13.1]} 18. Bd6 {[%clk
0:03:03.3]} 18... Re6 {[%clk 0:04:08]} 19. Nc4 {[%clk 0:02:55.7]} 19... Nd7
{[%clk 0:03:59.9]} 20. Re2 {[%clk 0:02:06.4]} 20... b5 {[%clk 0:03:56.4]} 21.
Bxe5 {[%clk 0:01:29]} 21... bxc4 {[%clk 0:03:49.7]} 22. Bxg7 {[%clk 0:01:20.3]}
22... Rxe2 {[%clk 0:03:46.8]} 23. Bxe2 {[%clk 0:01:16.8]} 23... Kxg7 {[%clk
0:03:45.4]} 24. dxc4 {[%clk 0:01:13.6]} 24... Nc5 {[%clk 0:03:43.5]} 25. f4
{[%clk 0:00:59.2]} 25... Be6 {[%clk 0:03:41.6]} 26. Kf2 {[%clk 0:00:55]} 26...
Ra3 {[%clk 0:03:40]} 27. Bd1 {[%clk 0:00:31.7]} 27... Rxc3 {[%clk 0:03:37.4]}
28. a4 {[%clk 0:00:26.8]} 28... Bxc4 {[%clk 0:03:35.3]} 29. a5 {[%clk
0:00:16.6]} 29... Rd3 {[%clk 0:03:32.1]} 30. a6 {[%clk 0:00:07.2]} 30... Bxa6
{[%clk 0:03:30.5]} 31. Be2 {[%clk 0:00:00.6]} 31... Rd2 {[%clk 0:03:29.6]} 0-1

[Event "Live Chess"]
[Site "Chess.com"]
[Date "2023.05.20"]
[Round "-"]
[White "jk0110"]
[Black "Biranidun"]
[Result "0-1"]
[WhiteElo "1118"]
[BlackElo "2766"]
[TimeControl "300"]
[EndTime "15:19:07 PDT"]
[Termination "Biranidun won by resignation"]

1. e4 {[%clk 0:04:57.3]} 1... c5 {[%clk 0:04:58.7]} 2. b4 {[%clk 0:04:51.5]}
2... cxb4 {[%clk 0:04:57.9]} 3. d4 {[%clk 0:04:48.9]} 3... d5 {[%clk 0:04:57.1]}
4. e5 {[%clk 0:04:47.6]} 4... Nc6 {[%clk 0:04:56.4]} 5. Nf3 {[%clk 0:04:45.5]}
5... Bg4 {[%clk 0:04:55.6]} 6. h3 {[%clk 0:04:37]} 6... Bxf3 {[%clk 0:04:55]} 7.
gxf3 {[%clk 0:04:29.3]} 7... e6 {[%clk 0:04:54.2]} 8. a3 {[%clk 0:04:00.4]} 8...
Qb6 {[%clk 0:04:46.5]} 9. axb4 {[%clk 0:03:53.7]} 9... Qxd4 {[%clk 0:04:44.6]}
10. Qxd4 {[%clk 0:03:49.3]} 10... Nxd4 {[%clk 0:04:44.5]} 11. c3 {[%clk
0:03:48.6]} 11... Nc2+ {[%clk 0:04:43.6]} 12. Kd1 {[%clk 0:03:45.2]} 12... Nxa1
{[%clk 0:04:43.5]} 13. Bb5+ {[%clk 0:03:32.5]} 13... Kd8 {[%clk 0:04:42.5]} 14.
Bg5+ {[%clk 0:03:29.9]} 14... Be7 {[%clk 0:04:41.6]} 15. Be3 {[%clk 0:03:17.8]}
15... Nh6 {[%clk 0:04:38.8]} 16. Rg1 {[%clk 0:03:16.5]} 16... Nf5 {[%clk
0:04:38]} 17. Bd2 {[%clk 0:03:08.2]} 17... Nb3 {[%clk 0:04:36.7]} 18. Bf4 {[%clk
0:02:58.3]} 18... a5 {[%clk 0:04:35.5]} 19. Kc2 {[%clk 0:02:47.5]} 19... Nbd4+
{[%clk 0:04:34.8]} 0-1

[Event "Live Chess"]
[Site "Chess.com"]
[Date "2023.05.20"]
[Round "-"]
[White "ViktorTheCoolBoy"]
[Black "CameronM1234"]
[Result "1-0"]
[WhiteElo "2520"]
[BlackElo "1090"]
[TimeControl "300"]
[EndTime "15:19:11 PDT"]
[Termination "ViktorTheCoolBoy won by checkmate"]

1. d4 {[%clk 0:04:58.9]} 1... Nf6 {[%clk 0:04:57.3]} 2. c4 {[%clk 0:04:58.1]}
2... g6 {[%clk 0:04:55.8]} 3. Nc3 {[%clk 0:04:55.3]} 3... Bg7 {[%clk 0:04:55.3]}
4. e4 {[%clk 0:04:54.1]} 4... d6 {[%clk 0:04:54.9]} 5. Nf3 {[%clk 0:04:52.8]}
5... O-O {[%clk 0:04:50.5]} 6. h3 {[%clk 0:04:51.4]} 6... h6 {[%clk 0:04:48.6]}
7. Be2 {[%clk 0:04:50.4]} 7... Nbd7 {[%clk 0:04:33.4]} 8. Be3 {[%clk 0:04:49.2]}
8... e5 {[%clk 0:04:29.6]} 9. O-O {[%clk 0:04:46.6]} 9... c6 {[%clk 0:04:20.5]}
10. Qc2 {[%clk 0:04:43.1]} 10... exd4 {[%clk 0:04:15.5]} 11. Nxd4 {[%clk
0:04:41]} 11... c5 {[%clk 0:04:10.7]} 12. Ndb5 {[%clk 0:04:39.6]} 12... Ne5
{[%clk 0:04:00.2]} 13. Rad1 {[%clk 0:04:36.1]} 13... Ne8 {[%clk 0:03:46.3]} 14.
f4 {[%clk 0:04:33.7]} 14... Nc6 {[%clk 0:03:41.3]} 15. e5 {[%clk 0:04:32.7]}
15... Nxe5 {[%clk 0:03:37.7]} 16. fxe5 {[%clk 0:04:30.5]} 16... Bxe5 {[%clk
0:03:36.9]} 17. Bxh6 {[%clk 0:04:29.1]} 17... Bg7 {[%clk 0:03:32.1]} 18. Bxg7
{[%clk 0:04:27.9]} 18... Kxg7 {[%clk 0:03:32]} 19. Nd5 {[%clk 0:04:26.4]} 19...
Be6 {[%clk 0:03:16.1]} 20. Nbc3 {[%clk 0:04:24.8]} 20... Nc7 {[%clk 0:03:09.1]}
21. Bf3 {[%clk 0:04:22]} 21... Nxd5 {[%clk 0:03:05.1]} 22. Bxd5 {[%clk
0:04:21.1]} 22... Rb8 {[%clk 0:03:00.2]} 23. Qe4 {[%clk 0:04:17.5]} 23... Qd7
{[%clk 0:02:53.8]} 24. Rde1 {[%clk 0:04:14.5]} 24... Rfe8 {[%clk 0:02:49.6]} 25.
Qf4 {[%clk 0:04:10.9]} 25... Bxd5 {[%clk 0:02:42.8]} 26. Nxd5 {[%clk 0:04:10.1]}
26... Qf5 {[%clk 0:02:36]} 27. Qxf5 {[%clk 0:04:08.9]} 27... gxf5 {[%clk
0:02:35]} 28. Rxe8 {[%clk 0:04:07.5]} 28... Rxe8 {[%clk 0:02:33.6]} 29. Kf2
{[%clk 0:04:06.8]} 29... Kg6 {[%clk 0:02:28.8]} 30. Re1 {[%clk 0:04:05.5]} 30...
Rxe1 {[%clk 0:02:26.5]} 31. Kxe1 {[%clk 0:04:05.4]} 31... a6 {[%clk 0:02:23.9]}
32. Kf2 {[%clk 0:04:04.1]} 32... b5 {[%clk 0:02:22.8]} 33. b3 {[%clk 0:04:03.5]}
33... Kg5 {[%clk 0:02:13.7]} 34. Kf3 {[%clk 0:04:02.6]} 34... Kg6 {[%clk
0:02:12.4]} 35. Kf4 {[%clk 0:04:01.6]} 35... bxc4 {[%clk 0:02:08.4]} 36. bxc4
{[%clk 0:04:00.1]} 36... a5 {[%clk 0:02:07.7]} 37. a4 {[%clk 0:03:58.9]} 37...
Kg7 {[%clk 0:02:04.6]} 38. Kxf5 {[%clk 0:03:57.4]} 38... Kf8 {[%clk 0:02:03.7]}
39. Kf6 {[%clk 0:03:56.9]} 39... Ke8 {[%clk 0:02:02.9]} 40. h4 {[%clk
0:03:56.4]} 40... Kd7 {[%clk 0:02:01.9]} 41. h5 {[%clk 0:03:55.7]} 41... Ke8
{[%clk 0:02:00.6]} 42. h6 {[%clk 0:03:55.2]} 42... Kf8 {[%clk 0:02:00]} 43. h7
{[%clk 0:03:54.6]} 43... Ke8 {[%clk 0:01:59.1]} 44. h8=Q+ {[%clk 0:03:54]} 44...
Kd7 {[%clk 0:01:59]} 45. Qb8 {[%clk 0:03:52.4]} 45... Kc6 {[%clk 0:01:57.9]} 46.
Qc7# {[%clk 0:03:52]} 1-0

[Event "Live Chess"]
[Site "Chess.com"]
[Date "2023.05.20"]
[Round "-"]
[White "HoarseyHorsey"]
[Black "xx_blindpuffin_xx"]
[Result "0-1"]
[WhiteElo "1437"]
[BlackElo "2212"]
[TimeControl "300"]
[EndTime "15:19:17 PDT"]
[Termination "xx_blindpuffin_xx won by resignation"]

1. d4 {[%clk 0:04:58.1]} 1... d5 {[%clk 0:04:58.1]} 2. c4 {[%clk 0:04:56.9]}
2... e6 {[%clk 0:04:56.9]} 3. Nc3 {[%clk 0:04:55.5]} 3... c6 {[%clk 0:04:53.8]}
4. Nf3 {[%clk 0:04:53.6]} 4... dxc4 {[%clk 0:04:50.6]} 5. e4 {[%clk 0:04:51.8]}
5... b5 {[%clk 0:04:50.2]} 6. a4 {[%clk 0:04:50.1]} 6... Bb4 {[%clk 0:04:48.1]}
7. Bd2 {[%clk 0:04:48.7]} 7... Nf6 {[%clk 0:04:42.8]} 8. e5 {[%clk 0:04:45]}
8... Nd5 {[%clk 0:04:37.8]} 9. axb5 {[%clk 0:04:43.7]} 9... Bxc3 {[%clk
0:04:36.4]} 10. bxc3 {[%clk 0:04:43.6]} 10... cxb5 {[%clk 0:04:35.8]} 11. Be2
{[%clk 0:04:40.8]} 11... O-O {[%clk 0:04:32.6]} 12. Qb1 {[%clk 0:04:32.3]} 12...
Bd7 {[%clk 0:04:30.2]} 13. Bg5 {[%clk 0:04:29]} 13... f6 {[%clk 0:04:21.5]} 14.
exf6 {[%clk 0:04:27.4]} 14... gxf6 {[%clk 0:04:21.4]} 15. Bh4 {[%clk 0:04:24.6]}
15... Nxc3 {[%clk 0:04:19.5]} 16. Qc1 {[%clk 0:04:16.7]} 16... Nxe2 {[%clk
0:04:17.7]} 17. Kxe2 {[%clk 0:04:16.6]} 17... Nc6 {[%clk 0:04:06.3]} 18. Re1
{[%clk 0:04:14.9]} 18... Nb4 {[%clk 0:04:03.9]} 19. Kf1 {[%clk 0:04:03.2]} 19...
Nd3 {[%clk 0:03:57.5]} 20. Qe3 {[%clk 0:03:55.7]} 20... Nxe1 {[%clk 0:03:55.4]}
21. Rxe1 {[%clk 0:03:55.6]} 21... b4 {[%clk 0:03:47.1]} 22. Ne5 {[%clk
0:03:48.4]} 22... Qe7 {[%clk 0:03:33.8]} 23. Nxc4 {[%clk 0:03:46.2]} 23... Bb5
{[%clk 0:03:32.6]} 24. Rc1 {[%clk 0:03:43.1]} 24... Rac8 {[%clk 0:03:30.7]} 25.
Qg3+ {[%clk 0:03:35.1]} 25... Kh8 {[%clk 0:03:29.3]} 26. Qd3 {[%clk 0:03:32.5]}
26... Qc7 {[%clk 0:03:25.5]} 27. Qf3 {[%clk 0:03:22.2]} 27... Bxc4+ {[%clk
0:03:23.8]} 28. Kg1 {[%clk 0:03:20.1]} 28... Qg7 {[%clk 0:03:07.1]} 29. Ra1
{[%clk 0:03:15.3]} 29... b3 {[%clk 0:03:02.2]} 30. Rc1 {[%clk 0:03:13]} 30... b2
{[%clk 0:03:00.4]} 31. Rb1 {[%clk 0:03:10.4]} 31... Ba2 {[%clk 0:02:59]} 0-1

[Event "Live Chess"]
[Site "Chess.com"]
[Date "2023.05.20"]
[Round "-"]
[White "JbbChess726"]
[Black "MrBlond89"]
[Result "0-1"]
[WhiteElo "416"]
[BlackElo "1370"]
[TimeControl "300"]
[EndTime "15:19:29 PDT"]
[Termination "MrBlond89 won by resignation"]

1. e4 {[%clk 0:04:58.3]} 1... e5 {[%clk 0:04:58.9]} 2. Nf3 {[%clk 0:04:57.4]}
2... Nc6 {[%clk 0:04:57.3]} 3. Bc4 {[%clk 0:04:56.3]} 3... f5 {[%clk 0:04:56.5]}
4. exf5 {[%clk 0:04:54.3]} 4... e4 {[%clk 0:04:55.2]} 5. Ng1 {[%clk 0:04:47.4]}
5... Nf6 {[%clk 0:04:53.9]} 6. d3 {[%clk 0:04:39.9]} 6... d5 {[%clk 0:04:43.8]}
7. Bb5 {[%clk 0:04:35.2]} 7... Bxf5 {[%clk 0:04:42.7]} 8. dxe4 {[%clk
0:04:33.8]} 8... Bxe4 {[%clk 0:04:37.9]} 9. Bg5 {[%clk 0:04:30.4]} 9... Bxg2
{[%clk 0:04:31.6]} 10. Nf3 {[%clk 0:04:27.8]} 10... Bxh1 {[%clk 0:04:29.4]} 11.
Bh4 {[%clk 0:04:26.5]} 11... Bxf3 {[%clk 0:04:25.5]} 0-1

[Event "Live Chess"]
[Site "Chess.com"]
[Date "2023.05.20"]
[Round "-"]
[White "LiamBellwood"]
[Black "f4nomore"]
[Result "1-0"]
[WhiteElo "2076"]
[BlackElo "1416"]
[TimeControl "300"]
[EndTime "15:19:31 PDT"]
[Termination "LiamBellwood won by checkmate"]

1. d4 {[%clk 0:04:58.2]} 1... g6 {[%clk 0:04:59.9]} 2. Nc3 {[%clk 0:04:57.4]}
2... Bg7 {[%clk 0:04:59.8]} 3. Bf4 {[%clk 0:04:57.1]} 3... d6 {[%clk 0:04:58.1]}
4. e4 {[%clk 0:04:56.7]} 4... Nd7 {[%clk 0:04:44.2]} 5. Nf3 {[%clk 0:04:53.7]}
5... Ngf6 {[%clk 0:04:41]} 6. Qd2 {[%clk 0:04:50.4]} 6... O-O {[%clk 0:04:33.3]}
7. O-O-O {[%clk 0:04:49.1]} 7... e5 {[%clk 0:04:27]} 8. dxe5 {[%clk 0:04:47.8]}
8... Nh5 {[%clk 0:04:18.9]} 9. Bg5 {[%clk 0:04:40.4]} 9... f6 {[%clk 0:04:15.3]}
10. Bc4+ {[%clk 0:04:38.8]} 10... Kh8 {[%clk 0:04:13.3]} 11. exf6 {[%clk
0:04:36.1]} 11... Ndxf6 {[%clk 0:04:10]} 12. e5 {[%clk 0:04:25.8]} 12... Bg4
{[%clk 0:03:47.6]} 13. exf6 {[%clk 0:04:23.4]} 13... Nxf6 {[%clk 0:03:38.3]} 14.
Nd5 {[%clk 0:04:17]} 14... Bxf3 {[%clk 0:03:34.3]} 15. gxf3 {[%clk 0:04:12.1]}
15... Qd7 {[%clk 0:03:23.6]} 16. Nxf6 {[%clk 0:03:49.7]} 16... Bxf6 {[%clk
0:03:17.8]} 17. Bxf6+ {[%clk 0:03:45.5]} 17... Rxf6 {[%clk 0:03:11.8]} 18. Qd4
{[%clk 0:03:39.6]} 18... Rf8 {[%clk 0:03:08.6]} 19. h4 {[%clk 0:03:34.6]} 19...
Qf5 {[%clk 0:03:01.6]} 20. Bd5 {[%clk 0:03:20.2]} 20... c5 {[%clk 0:02:37.9]}
21. Qc3 {[%clk 0:03:01.2]} 21... b5 {[%clk 0:02:27.5]} 22. Be4 {[%clk 0:03:00]}
22... Qf4+ {[%clk 0:02:21.9]} 23. Qd2 {[%clk 0:02:44]} 23... Qxd2+ {[%clk
0:02:10.4]} 24. Rxd2 {[%clk 0:02:43.9]} 24... a5 {[%clk 0:02:07]} 25. h5 {[%clk
0:02:34.5]} 25... g5 {[%clk 0:02:01.9]} 26. Rhd1 {[%clk 0:02:30]} 26... Rd8
{[%clk 0:01:57.5]} 27. Rd5 {[%clk 0:02:29.3]} 27... b4 {[%clk 0:01:36.3]} 28.
Rxg5 {[%clk 0:02:26.6]} 28... a4 {[%clk 0:01:31.6]} 29. Rxc5 {[%clk 0:02:22.4]}
29... b3 {[%clk 0:01:23.6]} 30. cxb3 {[%clk 0:02:18]} 30... axb3 {[%clk
0:01:18.9]} 31. axb3 {[%clk 0:02:09.3]} 31... Rb8 {[%clk 0:01:00.3]} 32. Rc7
{[%clk 0:02:07.8]} 32... Rh6 {[%clk 0:00:50.1]} 33. Kc2 {[%clk 0:02:00.7]} 33...
Rxh5 {[%clk 0:00:41]} 34. Rxd6 {[%clk 0:01:59.5]} 34... Rh2 {[%clk 0:00:36.4]}
35. Rdd7 {[%clk 0:01:44.9]} 35... Rxf2+ {[%clk 0:00:28.4]} 36. Kc3 {[%clk
0:01:44.3]} 36... h5 {[%clk 0:00:21.7]} 37. Rh7+ {[%clk 0:01:43.3]} 37... Kg8
{[%clk 0:00:19.8]} 38. Rcg7+ {[%clk 0:01:42.7]} 38... Kf8 {[%clk 0:00:18]} 39.
Bd5 {[%clk 0:01:35.7]} 39... Rc8+ {[%clk 0:00:15.3]} 40. Kd3 {[%clk 0:01:31.8]}
40... Rd8 {[%clk 0:00:12.9]} 41. Rg8# {[%clk 0:01:31.1]} 1-0